bitfinex/quotes_BTCUSD_20250617
["timestamp","ask_amount","ask_price","bid_price","bid_amount"]
[1750134585928,6.77639774,107600.0,107590.0,0.20806349]
[1750134586124,6.71482014,107600.0,107590.0,0.20806349]
[1750134587912,0.95212336,107600.0,107590.0,0.20806349]
[1750134588124,1.3308484,107600.0,107590.0,0.20806349]
[1750134588360,1.3632484,107600.0,107590.0,0.20806349]
[1750134589300,1.3632884,107600.0,107590.0,0.20806349]
[1750134589499,1.1656084,107600.0,107590.0,0.20806349]
[1750134589640,1.5596884,107600.0,107590.0,0.20806349]
[1750134589847,1.65583762,107600.0,107590.0,0.20806349]
[1750134591042,1.62343762,107600.0,107590.0,0.20806349]
[1750134591396,1.22935762,107600.0,107590.0,0.20806349]
[1750134591597,1.62343762,107600.0,107590.0,0.20806349]
[1750134595852,1.64570962,107600.0,107590.0,0.20806349]
[1750134596260,1.61778362,107600.0,107590.0,0.20806349]
[1750134597614,1.20701858,107600.0,107590.0,0.20806349]
[1750134597833,1.61778362,107600.0,107590.0,0.20806349]
[1750134598763,1.42014362,107600.0,107590.0,0.20806349]
[1750134598973,0.70224851,107600.0,107590.0,0.23876349]
[1750134599168,0.85708462,107600.0,107590.0,0.23876349]
[1750134599386,1.05464462,107600.0,107590.0,0.23876349]
[1750134600139,1.04864462,107600.0,107590.0,0.23776349]
[1750134600570,1.05164462,107600.0,107590.0,0.23776349]
[1750134601193,1.04664462,107600.0,107590.0,0.23676349]
[1750134602201,1.04964462,107600.0,107590.0,0.23676349]
[1750134606995,0.89384462,107600.0,107590.0,0.23676349]
[1750134607239,0.85208462,107600.0,107590.0,0.23676349]
[1750134607447,0.8441821,107600.0,107590.0,0.23676349]
[1750134607656,1.04956462,107600.0,107590.0,0.23676349]
[1750134608103,0.89384462,107600.0,107590.0,0.23676349]
[1750134608307,1.04956462,107600.0,107590.0,0.23676349]
[1750134610060,0.8441821,107600.0,107590.0,0.23676349]
[1750134610267,1.04956462,107600.0,107590.0,0.23676349]
[1750134623139,0.85208462,107600.0,107590.0,0.23676349]
[1750134623359,1.04920462,107600.0,107590.0,0.23676349]
[1750134625267,1.25458714,107600.0,107590.0,0.20606349]
[1750134625476,1.30102799,107600.0,107590.0,0.20606349]
[1750134625693,1.32331944,107600.0,107590.0,0.20606349]
[1750134625940,1.41946866,107600.0,107590.0,0.20606349]
[1750134626360,1.40406866,107600.0,107590.0,0.20606349]
[1750134626579,1.33646031,107600.0,107590.0,0.20606349]
[1750134626824,1.31996031,107600.0,107590.0,0.20606349]
[1750134627724,1.35186031,107600.0,107590.0,0.20606349]
[1750134639029,0.94109527,107600.0,107590.0,0.20606349]
[1750134639240,1.54826031,107600.0,107590.0,0.20606349]
[1750134639468,1.62093945,107600.0,107590.0,0.20606349]
[1750134640803,1.54826031,107600.0,107590.0,0.20606349]
[1750134643115,0.94037527,107600.0,107590.0,0.20606349]
[1750134643323,1.10523527,107600.0,107590.0,0.20606349]
[1750134643535,1.51600031,107600.0,107590.0,0.20606349]
[1750134645377,1.31924031,107600.0,107590.0,0.22106349]
[1750134645586,0.69753442,107600.0,107590.0,0.27519456]
[1750134645794,1.07734549,107600.0,107590.0,0.23616349]
[1750134649891,0.85208462,107600.0,107590.0,0.23616349]
[1750134650155,0.3481021,107600.0,107590.0,0.44154601]
[1750134650363,0.8433821,107600.0,107590.0,0.44154601]
[1750134650766,0.5033821,107600.0,107590.0,0.44154601]
[1750134650918,0.8433821,107600.0,107590.0,0.44154601]
[1750134652158,0.8433821,107600.0,107590.0,0.45090711]
[1750134652337,0.8433821,107600.0,107590.0,0.44154601]
[1750134660168,0.8432621,107600.0,107590.0,0.44154601]
[1750134661023,0.8402621,107600.0,107590.0,0.44154601]
[1750134661471,0.8382621,107600.0,107590.0,0.44154601]
[1750134661803,0.8402621,107600.0,107590.0,0.44154601]
[1750134662015,0.5002621,107600.0,107590.0,0.44154601]
[1750134662436,0.3451021,107600.0,107590.0,0.44154601]
[1750134662649,0.3451021,107600.0,107590.0,0.63673143]
[1750134662862,0.5002621,107600.0,107590.0,0.6460258]
[1750134663097,0.5002621,107600.0,107590.0,0.63673143]
[1750134663311,0.49096886,107600.0,107590.0,0.63673143]
[1750134663522,0.49096886,107600.0,107590.0,0.43134891]
[1750134663738,0.32651536,107600.0,107590.0,0.23616349]
[1750134664825,0.32651536,107600.0,107590.0,0.44154601]
[1750134665034,0.32651536,107600.0,107590.0,0.23616349]
[1750134667776,0.66651536,107600.0,107590.0,0.23616349]
[1750134667967,0.66651536,107600.0,107590.0,0.22106349]
[1750134668864,0.66651536,107600.0,107590.0,0.23656349]
[1750134672520,0.87186627,107600.0,107590.0,0.20606349]
[1750134672736,0.96801549,107600.0,107590.0,0.20606349]
[1750134672954,1.00091549,107600.0,107590.0,0.20606349]
[1750134675448,1.01545634,107600.0,107590.0,0.20606349]
[1750134675662,1.0953768,107600.0,107590.0,0.20606349]
[1750134675874,1.06566635,107600.0,107590.0,0.20606349]
[1750134677151,1.09344135,107600.0,107590.0,0.20606349]
[1750134677787,1.12128785,107600.0,107590.0,0.20606349]
[1750134677995,1.13869829,107600.0,107590.0,0.20606349]
[1750134678292,1.13869831,107600.0,107590.0,0.20606349]
[1750134678501,1.13869802,107600.0,107590.0,0.20606349]
[1750134678682,1.09344135,107600.0,107590.0,0.20606349]
[1750134684490,1.24844135,107600.0,107590.0,0.20606349]
[1750134686541,1.04309044,107600.0,107590.0,0.20606349]
[1750134686773,1.24844135,107600.0,107590.0,0.20606349]
[1750134689903,6.09309044,107600.0,107590.0,0.20606349]
[1750134690127,6.29844135,107600.0,107590.0,0.20606349]
[1750134692247,6.09309044,107600.0,107590.0,0.20606349]
[1750134692476,6.29844135,107600.0,107590.0,0.20606349]
[1750134693867,6.29744135,107600.0,107590.0,0.20606349]
[1750134694091,6.29544135,107600.0,107590.0,0.20606349]
[1750134694310,6.30144135,107600.0,107590.0,0.20706349]
[1750134694534,6.30844135,107600.0,107590.0,0.20806349]
[1750134695404,6.3381518,107600.0,107590.0,0.20806349]
[1750134695818,6.10309044,107600.0,107590.0,0.20806349]
[1750134696062,6.30820135,107600.0,107590.0,0.20806349]
[1750134698350,6.33604785,107600.0,107590.0,0.20806349]
[1750134702972,6.74715548,107600.0,107590.0,0.20806349]
[1750134703178,6.3455093,107600.0,107590.0,0.20806349]
[1750134703331,6.5415093,107600.0,107590.0,0.20806349]
[1750134703797,6.3455093,107600.0,107590.0,0.20806349]
[1750134703954,6.5415093,107600.0,107590.0,0.20806349]
[1750134704317,6.57870271,107600.0,107590.0,0.20806349]
[1750134704793,6.57866271,107600.0,107590.0,0.20806349]
[1750134706750,6.78414889,107600.0,107590.0,0.20806349]
[1750134706970,5.61748525,107590.0,107580.0,0.12760831]
[1750134707194,5.9954731,107590.0,107580.0,0.08688211]
[1750134707411,6.1298555,107590.0,107580.0,0.08688211]
[1750134707632,6.1577895,107590.0,107580.0,0.08688211]
[1750134707847,6.77424804,107590.0,107580.0,0.08688211]
[1750134708267,6.77824804,107590.0,107580.0,0.08688211]
[1750134708915,6.57292738,107590.0,107580.0,0.08688211]
[1750134709364,6.60074915,107590.0,107580.0,0.08688211]
[1750134709571,6.60074912,107590.0,107580.0,0.08688211]
[1750134709784,6.57892738,107590.0,107580.0,0.08788211]
[1750134711137,6.64050498,107590.0,107580.0,0.08788211]
[1750134711345,6.64050498,107590.0,107580.0,0.06961079]
[1750134711563,6.64050498,107590.0,107580.0,0.02308937]
[1750134712056,6.64050498,107590.0,107580.0,0.01355937]
[1750134712334,6.66829344,107590.0,107580.0,0.01355937]
[1750134712575,6.04128212,107580.0,107570.0,0.20606349]
[1750134712838,6.63502168,107580.0,107570.0,0.20606349]
[1750134713302,6.92030107,107580.0,107570.0,0.16230348]
[1750134713525,6.81333509,107580.0,107570.0,0.16230348]
[1750134713729,6.81333509,107580.0,107570.0,0.16239118]
[1750134713941,6.84127109,107580.0,107570.0,0.16239118]
[1750134714243,6.80407768,107580.0,107570.0,0.16339118]
[1750134714447,6.81407768,107580.0,107570.0,0.16439118]
[1750134714655,6.85127109,107580.0,107570.0,0.16439118]
[1750134715098,7.11841763,107580.0,107570.0,0.11842118]
[1750134715304,6.91284869,107580.0,107570.0,0.11842118]
[1750134715521,6.91284869,107580.0,107570.0,0.04576]
[1750134715729,5.71097283,107570.0,107560.0,0.30293511]
[1750134715938,6.2353292,107570.0,107560.0,0.30293511]
[1750134716374,6.2632692,107570.0,107560.0,0.30293511]
[1750134717014,6.2662692,107570.0,107560.0,0.30293511]
[1750134717422,6.2692692,107570.0,107560.0,0.30393511]
[1750134718668,6.47483814,107570.0,107560.0,0.30393511]
[1750134719103,5.90890026,107570.0,107560.0,0.30393511]
[1750134719340,5.82918981,107570.0,107560.0,0.30393511]
[1750134719570,6.17142113,107570.0,107560.0,0.30393511]
[1750134719807,5.94325724,107570.0,107560.0,0.33673511]
[1750134720066,1.30019809,107570.0,107560.0,0.33673511]
[1750134721529,1.10427809,107570.0,107560.0,0.33673511]
[1750134721639,1.30019809,107570.0,107560.0,0.33673511]
[1750134722378,1.10427809,107570.0,107560.0,0.33673511]
[1750134722604,1.39630731,107570.0,107560.0,0.33673511]
[1750134724257,1.19073837,107570.0,107560.0,0.33673511]
[1750134724466,1.39630731,107570.0,107560.0,0.33673511]
[1750134726772,1.39630731,107570.0,107560.0,0.32033511]
[1750134727426,1.42406493,107570.0,107560.0,0.30393511]
[1750134728743,1.39626731,107570.0,107560.0,0.30393511]
[1750134729243,1.39626731,107570.0,107560.0,0.32013511]
[1750134729896,1.42876731,107570.0,107560.0,0.30393511]
[1750134730747,1.20042731,107570.0,107560.0,0.30393511]
[1750134730965,1.39626731,107570.0,107560.0,0.30393511]
[1750134731187,1.42402493,107570.0,107560.0,0.30393511]
[1750134731649,1.45552493,107570.0,107560.0,0.30393511]
[1750134734727,1.58593897,107570.0,107560.0,0.30393511]
[1750134734946,1.58581897,107570.0,107560.0,0.30393511]
[1750134736267,1.62301238,107570.0,107560.0,0.30393511]
[1750134737660,1.42729238,107570.0,107560.0,0.30393511]
[1750134737840,1.41740344,107570.0,107560.0,0.33573511]
[1750134738124,1.42729238,107570.0,107560.0,0.33573511]
[1750134738346,1.62297238,107570.0,107560.0,0.33573511]
[1750134741000,1.62297238,107570.0,107560.0,0.31943511]
[1750134743648,1.62297238,107570.0,107560.0,0.33593511]
[1750134743844,1.64030746,107570.0,107560.0,0.33593511]
[1750134747437,1.04261852,107570.0,107560.0,0.33593511]
[1750134747640,1.3888405,107570.0,107560.0,0.33593511]
[1750134747863,1.55802135,107570.0,107560.0,0.33593511]
[1750134750502,1.36238135,107570.0,107560.0,0.33593511]
[1750134750723,1.55798135,107570.0,107560.0,0.33593511]
[1750134754998,1.35241241,107570.0,107560.0,0.33593511]
[1750134755198,1.55798135,107570.0,107560.0,0.33593511]
[1750134757332,1.55798135,107570.0,107560.0,0.30393511]
[1750134757531,1.58573897,107570.0,107560.0,0.30393511]
[1750134757851,6.66843897,107570.0,107560.0,0.30393511]
[1750134758047,6.68578414,107570.0,107560.0,0.30393511]
[1750134758899,6.65308414,107570.0,107560.0,0.30393511]
[1750134759052,6.69027755,107570.0,107560.0,0.30393511]
[1750134762574,6.65308414,107570.0,107560.0,0.30393511]
[1750134762831,6.69027755,107570.0,107560.0,0.30393511]
[1750134763544,6.69026824,107570.0,107560.0,0.30393511]
[1750134770432,6.67293238,107570.0,107560.0,0.30393511]
[1750134770868,6.58569634,107570.0,107560.0,0.30393511]
[1750134771519,6.61729634,107570.0,107560.0,0.30393511]
[1750134771727,6.60209634,107570.0,107560.0,0.30393511]
[1750134771963,6.58569634,107570.0,107560.0,0.30393511]
[1750134773001,6.79134614,107570.0,107560.0,0.30393511]
[1750134775142,6.88522374,107570.0,107560.0,0.30393511]
[1750134776768,6.85335659,107570.0,107560.0,0.30393511]
[1750134778047,7.09083311,107570.0,107560.0,0.30393511]
[1750134778247,6.88522374,107570.0,107560.0,0.30393511]
[1750134778660,7.09083311,107570.0,107560.0,0.30393511]
[1750134780184,6.88522374,107570.0,107560.0,0.30393511]
[1750134781268,7.14083311,107570.0,107560.0,0.30393511]
[1750134781500,7.10896596,107570.0,107560.0,0.30393511]
[1750134781956,7.07925551,107570.0,107560.0,0.30393511]
[1750134782170,6.87364614,107570.0,107560.0,0.30393511]
[1750134782388,6.87064614,107570.0,107560.0,0.30293511]
[1750134782715,7.08225551,107570.0,107560.0,0.30393511]
[1750134783347,7.15984664,107570.0,107560.0,0.30393511]
[1750134783573,7.16384664,107570.0,107560.0,0.30493511]
[1750134783792,7.19571379,107570.0,107560.0,0.30493511]
[1750134786128,0.19525783,107550.0,107540.0,0.16342526]
[1750134786362,6.27936222,107550.0,107540.0,0.16342526]
[1750134786592,6.43721188,107550.0,107540.0,0.16342526]
[1750134786789,6.46515488,107550.0,107540.0,0.16342526]
[1750134787312,6.46915488,107550.0,107540.0,0.16442526]
[1750134787515,6.67476425,107550.0,107540.0,0.16442526]
[1750134787717,6.46915488,107550.0,107540.0,0.16442526]
[1750134788485,6.47415488,107550.0,107540.0,0.16542526]
[1750134788738,6.76066425,107550.0,107540.0,0.16542526]
[1750134788966,6.61775608,107550.0,107540.0,0.16542526]
[1750134789277,6.56775608,107550.0,107540.0,0.16542526]
[1750134789486,6.60275608,107550.0,107540.0,0.16542526]
[1750134789712,6.55098893,107550.0,107540.0,0.16442526]
[1750134789889,6.55598893,107550.0,107540.0,0.16442526]
[1750134790677,6.55098893,107550.0,107540.0,0.16342526]
[1750134790828,6.55398893,107550.0,107540.0,0.16442526]
[1750134792508,6.20673679,107540.0,107530.0,0.044569]
[1750134792726,6.59444777,107540.0,107530.0,0.044569]
[1750134792942,6.50487102,107540.0,107530.0,0.044569]
[1750134793097,6.53281902,107540.0,107530.0,0.044569]
[1750134793310,6.73854985,107540.0,107530.0,0.044569]
[1750134793921,6.74063739,107540.0,107530.0,0.046569]
[1750134794115,6.53490656,107540.0,107530.0,0.046569]
[1750134794316,6.54426814,107540.0,107530.0,0.046569]
[1750134795287,6.33853731,107540.0,107530.0,0.046569]
[1750134795494,6.54426814,107540.0,107530.0,0.046569]
[1750134795819,6.57201829,107540.0,107530.0,0.046569]
[1750134796031,6.52201829,107540.0,107530.0,0.046569]
[1750134796248,6.55551829,107540.0,107530.0,0.046569]
[1750134796660,6.00737633,107540.0,107530.0,0.046569]
[1750134796886,6.21310716,107540.0,107530.0,0.078669]
[1750134797087,6.00737633,107540.0,107530.0,0.078669]
[1750134797349,1.21494716,107540.0,107530.0,0.078669]
[1750134797564,6.34681431,107540.0,107530.0,0.046569]
[1750134797780,6.46010544,107540.0,107530.0,0.046569]
[1750134797986,6.46010544,107540.0,107520.0,0.12693953]
[1750134797987,6.07375494,107530.0,107520.0,0.12693953]
[1750134798192,6.21481509,107530.0,107520.0,0.12693953]
[1750134798394,6.34745643,107530.0,107520.0,0.12693953]
[1750134798779,6.37540543,107530.0,107520.0,0.12693953]
[1750134799216,6.37740543,107530.0,107520.0,0.12693953]
[1750134801442,6.37940543,107530.0,107520.0,0.12693953]
[1750134806115,6.37940543,107530.0,107520.0,0.14243953]
[1750134806329,6.31694715,107530.0,107520.0,0.15743953]
[1750134806946,6.11121632,107530.0,107520.0,0.15743953]
[1750134807151,6.31694715,107530.0,107520.0,0.15743953]
[1750134808141,6.31694715,107530.0,107520.0,0.14243953]
[1750134812415,6.11121632,107530.0,107520.0,0.14243953]
[1750134812629,6.31694715,107530.0,107520.0,0.14243953]
[1750134813059,6.52270832,107530.0,107520.0,0.14243953]
[1750134813584,6.36830832,107530.0,107520.0,0.14243953]
[1750134813983,0.62341725,107530.0,107520.0,0.36318553]
[1750134814187,0.96341725,107530.0,107520.0,0.36318553]
[1750134814390,0.96341725,107530.0,107520.0,0.15743953]
[1750134814923,0.76817725,107530.0,107520.0,0.15743953]
[1750134815283,0.96341725,107530.0,107520.0,0.15743953]
[1750134815829,0.9779581,107530.0,107520.0,0.15743953]
[1750134818982,0.76817725,107530.0,107520.0,0.15743953]
[1750134819206,0.96337725,107530.0,107520.0,0.36308352]
[1750134819602,0.96337725,107530.0,107520.0,0.15743953]
[1750134819812,1.18356209,107530.0,107520.0,0.15743953]
[1750134820009,0.9779181,107530.0,107520.0,0.15743953]
[1750134821580,1.18356209,107530.0,107520.0,0.15743953]
[1750134821832,1.27971131,107530.0,107520.0,0.15743953]
[1750134822044,1.30191412,107530.0,107520.0,0.15743953]
[1750134822692,6.35191412,107530.0,107520.0,0.15743953]
[1750134823168,6.38250525,107530.0,107520.0,0.14243953]
[1750134823384,6.43820476,107530.0,107520.0,0.14243953]
[1750134823591,6.41045125,107530.0,107520.0,0.14243953]
[1750134824231,6.43820476,107530.0,107520.0,0.14243953]
[1750134824863,6.43820476,107530.0,107520.0,0.12693953]
[1750134825300,6.69675343,107530.0,107520.0,0.12693953]
[1750134825523,6.74182058,107530.0,107520.0,0.12693953]
[1750134825940,6.53617659,107530.0,107520.0,0.12693953]
[1750134828251,6.3305326,107530.0,107520.0,0.12693953]
[1750134828496,6.50842308,107530.0,107520.0,0.12693953]
[1750134829597,6.76406707,107530.0,107520.0,0.12693953]
[1750134829800,6.81957143,107530.0,107520.0,0.12693953]
[1750134830658,6.78970428,107530.0,107520.0,0.12693953]
[1750134830863,6.58406029,107530.0,107520.0,0.12693953]
[1750134831294,6.78970428,107530.0,107520.0,0.12693953]
[1750134832172,6.73419992,107530.0,107520.0,0.12693953]
[1750134832598,6.58406029,107530.0,107520.0,0.12693953]
[1750134833018,6.3784163,107530.0,107520.0,0.12693953]
[1750134833239,6.58406029,107530.0,107520.0,0.12693953]
[1750134833452,6.78066029,107530.0,107520.0,0.12693953]
[1750134833936,6.98630428,107530.0,107520.0,0.12693953]
[1750134836571,6.5750163,107530.0,107520.0,0.12693953]
[1750134836789,6.78066029,107530.0,107520.0,0.12693953]
[1750134838560,6.76538029,107530.0,107520.0,0.12693953]
[1750134838769,6.6792848,107530.0,107520.0,0.12693953]
[1750134838978,6.6633848,107530.0,107520.0,0.12693953]
[1750134839181,6.69112754,107530.0,107520.0,0.12693953]
[1750134839390,6.6633848,107530.0,107520.0,0.12693953]
[1750134839828,6.71888916,107530.0,107520.0,0.12693953]
[1750134840036,6.74968916,107530.0,107520.0,0.12693953]
[1750134840451,6.95533315,107530.0,107520.0,0.12693953]
[1750134840661,6.74968916,107530.0,107520.0,0.12693953]
[1750134840874,6.78028029,107530.0,107520.0,0.12693953]
[1750134841175,6.72477593,107530.0,107520.0,0.12693953]
[1750134841630,6.98592428,107530.0,107520.0,0.12693953]
[1750134842333,6.89961992,107530.0,107520.0,0.12693953]
[1750134842559,6.6633848,107530.0,107520.0,0.12693953]
[1750134844986,6.4682648,107530.0,107520.0,0.12693953]
[1750134845186,6.6633848,107530.0,107520.0,0.12693953]
[1750134845418,6.69112569,107530.0,107520.0,0.12693953]
[1750134845626,6.49600569,107530.0,107520.0,0.12693953]
[1750134845831,6.14421248,107530.0,107520.0,0.14223953]
[1750134846076,6.54497647,107530.0,107520.0,0.15873953]
[1750134849733,6.14421248,107530.0,107520.0,0.15873953]
[1750134849966,6.54497647,107530.0,107520.0,0.15873953]
[1750134850168,6.57769386,107530.0,107520.0,0.14223953]
[1750134850375,6.67384308,107530.0,107520.0,0.14223953]
[1750134851227,6.72934744,107530.0,107520.0,0.15803953]
[1750134851657,6.72934744,107530.0,107520.0,0.14223953]
[1750134851658,6.32858345,107530.0,107520.0,0.14223953]
[1750134851883,6.32858345,107530.0,107520.0,0.12693953]
[1750134851884,6.72934744,107530.0,107520.0,0.12693953]
[1750134852096,6.69948029,107530.0,107520.0,0.12693953]
[1750134852525,6.50436029,107530.0,107520.0,0.12693953]
[1750134852738,6.69992029,107530.0,107520.0,0.12693953]
[1750134854124,6.69992029,107530.0,107520.0,0.14273953]
[1750134854550,6.66940916,107530.0,107520.0,0.15823953]
[1750134854778,6.6139048,107530.0,107520.0,0.15823953]
[1750134855206,6.6138648,107530.0,107520.0,0.15823953]
[1750134855454,5.94765998,107530.0,107520.0,0.15823953]
[1750134855721,1.08351445,107530.0,107520.0,0.15823953]
[1750134855979,1.23827445,107530.0,107520.0,0.15823953]
[1750134856255,1.26289929,107530.0,107520.0,0.15823953]
[1750134856468,1.45845929,107530.0,107520.0,0.15823953]
[1750134856693,1.55460851,107530.0,107520.0,0.15823953]
[1750134858142,1.35904851,107530.0,107520.0,0.15823953]
[1750134858342,1.55476851,107530.0,107520.0,0.15823953]
[1750134858891,1.55468851,107530.0,107520.0,0.15823953]
[1750134859106,1.52690012,107530.0,107520.0,0.15823953]
[1750134859301,1.34904452,107530.0,107520.0,0.15823953]
[1750134859579,1.55468851,107530.0,107520.0,0.15823953]
[1750134859742,1.52690012,107530.0,107520.0,0.15823953]
[1750134859945,1.55468851,107530.0,107520.0,0.15823953]
[1750134862352,1.52690012,107530.0,107520.0,0.15823953]
[1750134863505,1.32125613,107530.0,107520.0,0.15823953]
[1750134863718,1.52690012,107530.0,107520.0,0.15823953]
[1750134864144,1.34904452,107530.0,107520.0,0.15823953]
[1750134864344,1.52690012,107530.0,107520.0,0.15823953]
[1750134865601,1.33126012,107530.0,107520.0,0.15823953]
[1750134865801,1.13466012,107530.0,107520.0,0.15823953]
[1750134866061,1.52682012,107530.0,107520.0,0.15823953]
[1750134868991,1.52666012,107530.0,107520.0,0.15823953]
[1750134869194,0.81832606,107530.0,107520.0,0.15823953]
[1750134869392,1.21032606,107530.0,107520.0,0.15823953]
[1750134869661,1.41597051,107530.0,107520.0,0.15823953]
[1750134871205,1.21032652,107530.0,107520.0,0.15823953]
[1750134871407,1.41593051,107530.0,107520.0,0.15823953]
[1750134872013,1.51207973,107530.0,107520.0,0.15823953]
[1750134875328,0.99268325,107530.0,107520.0,0.36388352]
[1750134875541,1.18796325,107530.0,107520.0,0.15823953]
[1750134875751,0.99268325,107530.0,107520.0,0.15823953]
[1750134875966,1.16001725,107530.0,107520.0,0.15823953]
[1750134876637,0.82001725,107530.0,107520.0,0.15823953]
[1750134877057,0.81801725,107530.0,107520.0,0.15823953]
[1750134877929,0.62373725,107530.0,107520.0,0.19562788]
[1750134878131,0.81901725,107530.0,107520.0,0.15923953]
[1750134878549,0.81901725,107530.0,107520.0,0.16156439]
[1750134879375,0.81901725,107530.0,107520.0,0.15923953]
[1750134880256,0.81901725,107530.0,107520.0,0.16156439]
[1750134880882,0.81901725,107530.0,107520.0,0.36720838]
[1750134881082,0.81901725,107530.0,107520.0,0.40160436]
[1750134881083,0.62373725,107530.0,107520.0,0.40160436]
[1750134881289,0.66469725,107530.0,107520.0,0.40160436]
[1750134881732,0.66469725,107530.0,107520.0,0.60724835]
[1750134881945,0.72281549,107530.0,107520.0,0.60724835]
[1750134882380,0.72281549,107530.0,107520.0,0.19596037]
[1750134882588,0.72281549,107530.0,107520.0,0.36488352]
[1750134882808,0.72181549,107530.0,107520.0,0.36388352]
[1750134883015,0.72281549,107530.0,107520.0,0.57052751]
[1750134883223,0.72281549,107530.0,107520.0,0.36488352]
[1750134883617,0.72081549,107530.0,107520.0,0.36488352]
[1750134883841,0.72181549,107530.0,107520.0,0.36888352]
[1750134884644,0.81805725,107530.0,107520.0,0.36888352]
[1750134890340,0.56745549,107530.0,107520.0,0.36888352]
[1750134890541,0.72177549,107530.0,107520.0,0.57452751]
[1750134891755,0.72161549,107530.0,107520.0,0.57452751]
[1750134891944,0.72165549,107530.0,107520.0,0.57452751]
[1750134892128,0.56725549,107530.0,107520.0,0.57452751]
[1750134892332,0.72165549,107530.0,107520.0,0.36888352]
[1750134892533,0.56725549,107530.0,107520.0,0.36888352]
[1750134892715,0.72165549,107530.0,107520.0,0.36888352]
[1750134892931,0.56725549,107530.0,107520.0,0.36888352]
[1750134893149,0.52649549,107530.0,107520.0,0.57452751]
[1750134893327,0.72165549,107530.0,107520.0,0.57452751]
[1750134895064,0.73083496,107530.0,107520.0,0.78844057]
[1750134895290,0.73083496,107530.0,107520.0,0.77914033]
[1750134895442,0.73083496,107530.0,107520.0,0.57349634]
[1750134896261,0.72983496,107530.0,107520.0,0.36488352]
[1750134896666,0.73083496,107530.0,107520.0,0.36988352]
[1750134896879,0.72983496,107530.0,107520.0,0.16323953]
[1750134897079,0.73083496,107530.0,107520.0,0.16623953]
[1750134898062,0.73083496,107530.0,107520.0,0.37188352]
[1750134898860,0.53427496,107530.0,107520.0,0.37188352]
[1750134902417,1.28098943,107530.0,107520.0,0.13493953]
[1750134902629,1.4375968,107530.0,107520.0,0.13493953]
[1750134902824,1.23195281,107530.0,107520.0,0.13493953]
[1750134903051,1.37713865,107530.0,107520.0,0.13493953]
[1750134903256,1.21003965,107530.0,107520.0,0.13493953]
[1750134903451,1.40343965,107530.0,107520.0,0.12693953]
[1750134903628,1.40543965,107530.0,107520.0,0.12993953]
[1750134906054,1.13581093,107530.0,107520.0,0.12993953]
[1750134906258,0.99869772,107530.0,107520.0,0.12993953]
[1750134908965,1.20434171,107530.0,107520.0,0.12993953]
[1750134909168,0.99869772,107530.0,107520.0,0.12993953]
[1750134909308,1.20434171,107530.0,107520.0,0.12993953]
[1750134921285,1.40090171,107530.0,107520.0,0.12993953]
[1750134923880,1.54279178,107530.0,107520.0,0.12993953]
[1750134925358,1.74843577,107530.0,107520.0,0.12993953]
[1750134925578,1.60610749,107530.0,107520.0,0.12993953]
[1750134925828,7.4021029,107530.0,107520.0,0.12993953]
[1750134926051,7.4521029,107530.0,107520.0,0.12993953]
[1750134926260,7.4511029,107530.0,107520.0,0.12893953]
[1750134926478,7.4501029,107530.0,107520.0,0.12693953]
[1750134926683,7.4521029,107530.0,107520.0,0.12793953]
[1750134926888,7.4571029,107530.0,107520.0,0.12893953]
[1750134927931,7.4551029,107530.0,107520.0,0.12793953]
[1750134928381,7.18019588,107530.0,107520.0,0.12793953]
[1750134928587,7.42523588,107530.0,107520.0,0.12793953]
[1750134928794,7.42823588,107530.0,107520.0,0.12893953]
[1750134928992,7.37823588,107530.0,107520.0,0.12893953]
[1750134929198,7.42823588,107530.0,107520.0,0.12893953]
[1750134931069,7.37823588,107530.0,107520.0,0.12893953]
[1750134932025,6.7719079,107530.0,107520.0,0.12893953]
[1750134932235,6.85081154,107530.0,107520.0,0.12893953]
[1750134932435,7.01810315,107530.0,107520.0,0.12893953]
[1750134933257,6.82302315,107530.0,107520.0,0.12893953]
[1750134933477,1.96810315,107530.0,107520.0,0.12893953]
[1750134933700,2.04644504,107530.0,107520.0,0.12893953]
[1750134937023,7.12423343,107530.0,107520.0,0.12893953]
[1750134938693,7.12419343,107530.0,107520.0,0.12893953]
[1750134941401,6.92915343,107530.0,107520.0,0.12893953]
[1750134941605,7.12419343,107530.0,107520.0,0.12893953]
[1750134944298,6.92915343,107530.0,107520.0,0.12893953]
[1750134944503,7.12419343,107530.0,107520.0,0.12893953]
[1750134945982,7.32983742,107530.0,107520.0,0.12893953]
[1750134946511,7.16538855,107530.0,107520.0,0.12893953]
[1750134946721,7.36042855,107530.0,107520.0,0.12893953]
[1750134948241,7.16538855,107530.0,107520.0,0.12893953]
[1750134948468,7.36042855,107530.0,107520.0,0.12893953]
[1750134949368,7.39743323,107530.0,107520.0,0.12893953]
[1750134950083,7.36042855,107530.0,107520.0,0.12893953]
[1750134952368,7.39743323,107530.0,107520.0,0.12893953]
[1750134952569,7.36964484,107530.0,107520.0,0.12893953]
[1750134953341,7.39951186,107530.0,107520.0,0.12893953]
[1750134953762,7.50501622,107530.0,107520.0,0.12793953]
[1750134953940,7.46801154,107530.0,107520.0,0.12793953]
[1750134955150,7.51801154,107530.0,107520.0,0.10383953]
[1750134955351,0.01454085,107500.0,107480.0,0.10359641]
[1750134955579,1.04151532,107490.0,107480.0,0.10359641]
[1750134955981,1.06946732,107490.0,107480.0,0.10359641]
[1750134956633,1.06960852,107490.0,107480.0,0.10359641]
[1750134957073,1.07160852,107490.0,107480.0,0.10559641]
[1750134957278,1.07160852,107490.0,107480.0,0.09049641]
[1750134957698,1.07160852,107490.0,107480.0,0.10609641]
[1750134958514,1.16775774,107490.0,107480.0,0.10609641]
[1750134958715,1.16875774,107490.0,107480.0,0.10609641]
[1750134958915,1.07260852,107490.0,107480.0,0.10609641]
[1750134959886,0.6813804,107490.0,107480.0,0.10609641]
[1750134960094,1.08198439,107490.0,107480.0,0.10609641]
[1750134961991,1.0322204,107490.0,107480.0,0.10609641]
[1750134962245,0.8779804,107490.0,107480.0,0.10609641]
[1750134962425,0.8500284,107490.0,107480.0,0.10609641]
[1750134962627,1.0449884,107490.0,107480.0,0.10609641]
[1750134963688,0.8500284,107490.0,107480.0,0.10609641]
[1750134963874,1.0449884,107490.0,107480.0,0.10609641]
[1750134965272,0.8500284,107490.0,107480.0,0.14310801]
[1750134965479,1.0449884,107490.0,107480.0,0.14310801]
[1750134965909,1.0449884,107490.0,107480.0,0.10609641]
[1750134966534,0.84065253,107490.0,107480.0,0.10609641]
[1750134966744,0.88137253,107490.0,107480.0,0.31406622]
[1750134966938,1.03557253,107490.0,107480.0,0.3117404]
[1750134967151,1.03557253,107490.0,107480.0,0.10609641]
[1750134967358,1.03557253,107490.0,107480.0,0.10842214]
[1750134967798,0.84065253,107490.0,107480.0,0.10842214]
[1750134968022,1.03557253,107490.0,107480.0,0.10842214]
[1750134968230,0.84065253,107490.0,107480.0,0.10609641]
[1750134968438,1.03557253,107490.0,107480.0,0.10609641]
[1750134974746,1.24121652,107490.0,107480.0,0.10609641]
[1750134975147,1.03557253,107490.0,107480.0,0.10609641]
[1750134990889,1.03557253,107490.0,107480.0,0.09049641]
[1750134991085,1.24140199,107490.0,107480.0,0.10649641]
[1750134991235,1.05779495,107490.0,107480.0,0.10649641]
[1750134991440,1.26362441,107490.0,107480.0,0.10649641]